[Event "*** Titled Tuesday Blitz"]
[Site "Chess.com"]
[Date "2020.04.28"]
[Round "4"]
[White "rasmussvane"]
[Black "Volovier"]
[Result "1-0"]
[WhiteElo "2864"]
[BlackElo "2622"]
[TimeControl "180+1"]
[EndTime "10:42:24 PDT"]
[Termination "rasmussvane won on time"]

1. Nf3 {[%clk 0:03:00.9]} 1... d5 {[%clk 0:02:59.4]} 2. g3 {[%clk 0:03:00.9]}
2... Bf5 {[%clk 0:02:58.9]} 3. Bg2 {[%clk 0:03:00.8]} 3... e6 {[%clk 0:02:58.2]}
4. O-O {[%clk 0:03:01.3]} 4... Nf6 {[%clk 0:02:58.1]} 5. c4 {[%clk 0:03:01.1]}
5... c6 {[%clk 0:02:57.2]} 6. Qb3 {[%clk 0:03:00.7]} 6... Qb6 {[%clk 0:02:56.6]}
7. d3 {[%clk 0:03:01]} 7... Nbd7 {[%clk 0:02:54.8]} 8. cxd5 {[%clk 0:03:00.9]}
8... exd5 {[%clk 0:02:53.6]} 9. Qc2 {[%clk 0:03:00.4]} 9... Be7 {[%clk
0:02:49.3]} 10. Nc3 {[%clk 0:03:00.1]} 10... O-O {[%clk 0:02:47.9]} 11. e4
{[%clk 0:03:00.3]} 11... Be6 {[%clk 0:02:45.6]} 12. Be3 {[%clk 0:02:57.9]} 12...
Qc7 {[%clk 0:02:41.3]} 13. Ng5 {[%clk 0:02:50.3]} 13... dxe4 {[%clk 0:02:34.4]}
14. dxe4 {[%clk 0:02:21.6]} 14... Nc5 {[%clk 0:02:31.3]} 15. b4 {[%clk 0:02:17]}
15... Na6 {[%clk 0:02:28.2]} 16. Nxe6 {[%clk 0:02:15.8]} 16... fxe6 {[%clk
0:02:27.1]} 17. a3 {[%clk 0:02:15.6]} 17... Rfd8 {[%clk 0:02:22.1]} 18. Qb3
{[%clk 0:02:12.6]} 18... Qc8 {[%clk 0:02:20.8]} 19. Rad1 {[%clk 0:02:10.5]}
19... Rxd1 {[%clk 0:02:20.2]} 20. Rxd1 {[%clk 0:02:11.4]} 20... Nc7 {[%clk
0:02:18.7]} 21. Ne2 {[%clk 0:02:07.5]} 21... a5 {[%clk 0:02:06.7]} 22. Bf4
{[%clk 0:02:02.1]} 22... a4 {[%clk 0:02:03]} 23. Qa2 {[%clk 0:01:57.4]} 23...
Nb5 {[%clk 0:02:01.2]} 24. Be5 {[%clk 0:01:42.9]} 24... c5 {[%clk 0:01:55.1]}
25. bxc5 {[%clk 0:01:32.5]} 25... Bxc5 {[%clk 0:01:53.2]} 26. Rc1 {[%clk
0:00:52.8]} 26... b6 {[%clk 0:01:46.3]} 27. Bh3 {[%clk 0:00:49]} 27... Kf7
{[%clk 0:01:41.8]} 28. Kg2 {[%clk 0:00:29.6]} 28... Nxe4 {[%clk 0:01:30.1]} 29.
Nf4 {[%clk 0:00:20.8]} 29... Ng5 {[%clk 0:01:29.9]} 30. Bg4 {[%clk 0:00:20.6]}
30... Kg8 {[%clk 0:01:24.7]} 31. Nxe6 {[%clk 0:00:17.5]} 31... Qc6+ {[%clk
0:01:22.3]} 32. f3 {[%clk 0:00:16.1]} 32... Nxe6 {[%clk 0:01:20.5]} 33. Bxe6+
{[%clk 0:00:14.4]} 33... Kh8 {[%clk 0:01:17.2]} 34. Bd5 {[%clk 0:00:14.9]} 34...
Qe8 {[%clk 0:01:14.5]} 35. Bxa8 {[%clk 0:00:12.7]} 35... Qxe5 {[%clk 0:01:09]}
36. Be4 {[%clk 0:00:12.7]} 36... Nd4 {[%clk 0:01:04.8]} 37. Rd1 {[%clk
0:00:11.2]} 37... g6 {[%clk 0:00:58.8]} 38. Qd5 {[%clk 0:00:10.9]} 38... Qxd5
{[%clk 0:00:55.6]} 39. Bxd5 {[%clk 0:00:11.8]} 39... Nc2 {[%clk 0:00:53.7]} 40.
Rd2 {[%clk 0:00:07.5]} 40... Ne3+ {[%clk 0:00:47.3]} 41. Kh3 {[%clk 0:00:07.6]}
41... Nxd5 {[%clk 0:00:47.7]} 42. Rxd5 {[%clk 0:00:07.9]} 42... Bxa3 {[%clk
0:00:46.7]} 43. Rd4 {[%clk 0:00:06.5]} 43... b5 {[%clk 0:00:44]} 44. Rd5 {[%clk
0:00:06.9]} 44... b4 {[%clk 0:00:40.5]} 45. Ra5 {[%clk 0:00:07.8]} 45... b3
{[%clk 0:00:36.5]} 46. Rxa4 {[%clk 0:00:08.2]} 46... b2 {[%clk 0:00:36.1]} 47.
Ra8+ {[%clk 0:00:08.6]} 47... Kg7 {[%clk 0:00:34.9]} 48. Rb8 {[%clk 0:00:09.5]}
48... Kf6 {[%clk 0:00:30.8]} 49. Rb5 {[%clk 0:00:08.7]} 49... h5 {[%clk
0:00:24]} 50. Kh4 {[%clk 0:00:08.1]} 50... Ke6 {[%clk 0:00:22.4]} 51. Kg5 {[%clk
0:00:08.2]} 51... Kd6 {[%clk 0:00:20.1]} 52. Kxg6 {[%clk 0:00:08.3]} 52... Kc6
{[%clk 0:00:17.5]} 53. Rb3 {[%clk 0:00:08.4]} 53... h4 {[%clk 0:00:14.3]} 54.
gxh4 {[%clk 0:00:07.6]} 54... Kc5 {[%clk 0:00:13.7]} 55. h5 {[%clk 0:00:07.5]}
55... Kc4 {[%clk 0:00:14.1]} 56. Rxb2 {[%clk 0:00:07.8]} 56... Bxb2 {[%clk
0:00:10.8]} 57. h6 {[%clk 0:00:05.5]} 57... Kd5 {[%clk 0:00:10.7]} 58. Kf7
{[%clk 0:00:04.2]} 58... Ke5 {[%clk 0:00:09.4]} 59. h7 {[%clk 0:00:02.5]} 59...
Kf4 {[%clk 0:00:08.9]} 60. h4 {[%clk 0:00:02.4]} 60... Kxf3 {[%clk 0:00:07.3]}
61. h5 {[%clk 0:00:02.9]} 61... Kg4 {[%clk 0:00:07]} 62. Kg6 {[%clk 0:00:03.8]}
62... Kh4 {[%clk 0:00:05.2]} 63. h6 {[%clk 0:00:04.2]} 63... Kg4 {[%clk
0:00:03.7]} 64. Kf7 {[%clk 0:00:04.5]} 64... Kh5 {[%clk 0:00:01]} 65. h8=Q
{[%clk 0:00:05.4]} 1-0

[Event "*** Titled Tuesday Blitz"]
[Site "Chess.com"]
[Date "2020.04.28"]
[Round "4"]
[White "vovachesss"]
[Black "PowerThinking2650"]
[Result "0-1"]
[WhiteElo "2570"]
[BlackElo "2259"]
[TimeControl "180+1"]
[EndTime "10:42:26 PDT"]
[Termination "PowerThinking2650 won by checkmate"]

1. e4 {[%clk 0:03:00.9]} 1... e5 {[%clk 0:02:58.7]} 2. Bc4 {[%clk 0:03:00.2]}
2... Nc6 {[%clk 0:02:50.3]} 3. Nf3 {[%clk 0:02:59.6]} 3... Nf6 {[%clk
0:02:49.7]} 4. d3 {[%clk 0:02:58.5]} 4... h6 {[%clk 0:02:46.4]} 5. O-O {[%clk
0:02:52.8]} 5... d6 {[%clk 0:02:45.8]} 6. c3 {[%clk 0:02:46.2]} 6... g6 {[%clk
0:02:44.6]} 7. h3 {[%clk 0:02:43.8]} 7... Bg7 {[%clk 0:02:44.5]} 8. Re1 {[%clk
0:02:41.1]} 8... O-O {[%clk 0:02:44.3]} 9. Nbd2 {[%clk 0:02:26.2]} 9... Kh8
{[%clk 0:02:33.8]} 10. d4 {[%clk 0:02:23.2]} 10... Nh5 {[%clk 0:02:27.1]} 11.
Nf1 {[%clk 0:02:14.4]} 11... Qe8 {[%clk 0:02:20]} 12. dxe5 {[%clk 0:01:29.2]}
12... Nxe5 {[%clk 0:02:04.4]} 13. Nxe5 {[%clk 0:01:21.6]} 13... dxe5 {[%clk
0:02:02.7]} 14. Be3 {[%clk 0:01:09.8]} 14... Nf4 {[%clk 0:01:53.7]} 15. Ng3
{[%clk 0:00:42.4]} 15... Qe7 {[%clk 0:01:36.9]} 16. b4 {[%clk 0:00:33.9]} 16...
b6 {[%clk 0:01:34]} 17. Qf3 {[%clk 0:00:28.3]} 17... Qh4 {[%clk 0:01:27.3]} 18.
Ne2 {[%clk 0:00:14]} 18... g5 {[%clk 0:01:18.5]} 19. Bxf4 {[%clk 0:00:07.8]}
19... gxf4 {[%clk 0:00:57.8]} 20. Kh2 {[%clk 0:00:08.2]} 20... Bf6 {[%clk
0:00:50.2]} 21. Ng1 {[%clk 0:00:07.4]} 21... c6 {[%clk 0:00:31.3]} 22. g3 {[%clk
0:00:07.5]} 22... fxg3+ {[%clk 0:00:28.9]} 23. fxg3 {[%clk 0:00:07.7]} 23... Qg5
{[%clk 0:00:27.8]} 24. Rf1 {[%clk 0:00:07.4]} 24... Kg7 {[%clk 0:00:27.6]} 25.
Rf2 {[%clk 0:00:07.4]} 25... Be6 {[%clk 0:00:27.3]} 26. Be2 {[%clk 0:00:05.1]}
26... Be7 {[%clk 0:00:26.1]} 27. Raf1 {[%clk 0:00:05.5]} 27... f5 {[%clk
0:00:26.2]} 28. Bd3 {[%clk 0:00:05.5]} 28... f4 {[%clk 0:00:24.3]} 29. Ne2
{[%clk 0:00:03.8]} 29... fxg3+ {[%clk 0:00:22.9]} 30. Qxg3 {[%clk 0:00:04.7]}
30... Qxg3+ {[%clk 0:00:22.8]} 31. Nxg3 {[%clk 0:00:05.6]} 31... Rxf2+ {[%clk
0:00:22.4]} 32. Rxf2 {[%clk 0:00:06.5]} 32... Kg6 {[%clk 0:00:18.8]} 33. Rg2
{[%clk 0:00:06]} 33... Bg5 {[%clk 0:00:17.4]} 34. h4 {[%clk 0:00:05.2]} 34...
Bf4 {[%clk 0:00:17.3]} 35. Kg1 {[%clk 0:00:04.7]} 35... Kf6 {[%clk 0:00:15.7]}
36. Nh5+ {[%clk 0:00:05]} 36... Ke7 {[%clk 0:00:14.4]} 37. Rg7+ {[%clk
0:00:05.1]} 37... Kd6 {[%clk 0:00:14.4]} 38. Rg6 {[%clk 0:00:04.3]} 38... Rg8
{[%clk 0:00:13.4]} 39. Rxg8 {[%clk 0:00:03.9]} 39... Bxg8 {[%clk 0:00:13.4]} 40.
Nxf4 {[%clk 0:00:03.5]} 40... exf4 {[%clk 0:00:13.6]} 41. a3 {[%clk 0:00:04.4]}
41... Ke5 {[%clk 0:00:13.4]} 42. Kf2 {[%clk 0:00:05.3]} 42... Bf7 {[%clk
0:00:13.4]} 43. Kf3 {[%clk 0:00:05.9]} 43... Bh5+ {[%clk 0:00:13.4]} 44. Kf2
{[%clk 0:00:06.6]} 44... Bd1 {[%clk 0:00:12.7]} 45. Bb1 {[%clk 0:00:06.4]} 45...
c5 {[%clk 0:00:12.4]} 46. Bd3 {[%clk 0:00:06.2]} 46... Bg4 {[%clk 0:00:11.1]}
47. Bc2 {[%clk 0:00:05.9]} 47... Be6 {[%clk 0:00:11.1]} 48. Bd3 {[%clk 0:00:06]}
48... a5 {[%clk 0:00:10.8]} 49. bxa5 {[%clk 0:00:05.7]} 49... bxa5 {[%clk
0:00:10.7]} 50. Bc2 {[%clk 0:00:06.6]} 50... Bc4 {[%clk 0:00:10.4]} 51. Bb1
{[%clk 0:00:06.8]} 51... Bb3 {[%clk 0:00:10.2]} 52. Kf3 {[%clk 0:00:07.1]} 52...
Bd1+ {[%clk 0:00:09.4]} 53. Kf2 {[%clk 0:00:07.8]} 53... c4 {[%clk 0:00:09.8]}
54. Ba2 {[%clk 0:00:06.5]} 54... Bb3 {[%clk 0:00:08.4]} 55. Bb1 {[%clk 0:00:07]}
55... Bd1 {[%clk 0:00:07]} 56. Ba2 {[%clk 0:00:07]} 56... Bb3 {[%clk 0:00:06.5]}
57. Bb1 {[%clk 0:00:07.3]} 57... a4 {[%clk 0:00:07.4]} 58. Ke2 {[%clk
0:00:06.4]} 58... Ke6 {[%clk 0:00:05.1]} 59. Kf3 {[%clk 0:00:05.3]} 59... Ke5
{[%clk 0:00:05.5]} 60. Ke2 {[%clk 0:00:05.3]} 60... Ke6 {[%clk 0:00:05.8]} 61.
Kf2 {[%clk 0:00:05.1]} 61... Ke5 {[%clk 0:00:06.1]} 62. Kf3 {[%clk 0:00:04.1]}
62... Bd1+ {[%clk 0:00:06.3]} 63. Kf2 {[%clk 0:00:04.5]} 63... Bg4 {[%clk
0:00:06.2]} 64. Bc2 {[%clk 0:00:04.4]} 64... Bd7 {[%clk 0:00:04.8]} 65. Kf3
{[%clk 0:00:04.6]} 65... Bc6 {[%clk 0:00:04.5]} 66. Kg4 {[%clk 0:00:03.6]} 66...
Bxe4 {[%clk 0:00:03.8]} 67. Bxa4 {[%clk 0:00:04.3]} 67... Bd3 {[%clk 0:00:03.3]}
68. Bd1 {[%clk 0:00:03.7]} 68... Ke4 {[%clk 0:00:02.9]} 69. Bf3+ {[%clk
0:00:02.6]} 69... Ke3 {[%clk 0:00:03.1]} 70. a4 {[%clk 0:00:02.3]} 70... h5+
{[%clk 0:00:03.1]} 71. Kxh5 {[%clk 0:00:01.3]} 71... Kxf3 {[%clk 0:00:03.5]} 72.
a5 {[%clk 0:00:02.2]} 72... Be4 {[%clk 0:00:03.8]} 73. Kg5 {[%clk 0:00:02.5]}
73... Kg3 {[%clk 0:00:04.1]} 74. h5 {[%clk 0:00:02.8]} 74... f3 {[%clk
0:00:04.7]} 75. h6 {[%clk 0:00:03.6]} 75... f2 {[%clk 0:00:05]} 76. h7 {[%clk
0:00:04.5]} 76... f1=Q {[%clk 0:00:05.3]} 77. h8=Q {[%clk 0:00:04.4]} 77... Qf4+
{[%clk 0:00:05.3]} 78. Kh5 {[%clk 0:00:03.1]} 78... Qg4+ {[%clk 0:00:05.2]} 79.
Kh6 {[%clk 0:00:03.8]} 79... Qg6# {[%clk 0:00:05.6]} 0-1

[Event "*** Titled Tuesday Blitz"]
[Site "Chess.com"]
[Date "2020.04.28"]
[Round "4"]
[White "AttilaTurzo"]
[Black "theblitzchamp"]
[Result "0-1"]
[WhiteElo "2483"]
[BlackElo "2681"]
[TimeControl "180+1"]
[EndTime "10:42:49 PDT"]
[Termination "theblitzchamp won by resignation"]

1. e4 {[%clk 0:03:00.9]} 1... e5 {[%clk 0:02:59.5]} 2. Nf3 {[%clk 0:03:00.1]}
2... Nc6 {[%clk 0:02:59.5]} 3. d4 {[%clk 0:02:58]} 3... exd4 {[%clk 0:02:59.1]}
4. Nxd4 {[%clk 0:02:58.9]} 4... Nf6 {[%clk 0:02:59.2]} 5. Nxc6 {[%clk
0:02:56.4]} 5... bxc6 {[%clk 0:03:00.1]} 6. e5 {[%clk 0:02:56.9]} 6... Qe7
{[%clk 0:03:00.7]} 7. Qe2 {[%clk 0:02:57.4]} 7... Nd5 {[%clk 0:03:01.4]} 8. c4
{[%clk 0:02:57.9]} 8... Qb4+ {[%clk 0:03:02]} 9. Qd2 {[%clk 0:02:52.2]} 9... Nf4
{[%clk 0:03:01.1]} 10. a3 {[%clk 0:02:41.8]} 10... Qxd2+ {[%clk 0:03:00.5]} 11.
Bxd2 {[%clk 0:02:41.4]} 11... Ng6 {[%clk 0:03:01.1]} 12. f4 {[%clk 0:02:40.5]}
12... d6 {[%clk 0:03:00.6]} 13. exd6 {[%clk 0:02:23.6]} 13... cxd6 {[%clk
0:02:52.5]} 14. g3 {[%clk 0:02:21.2]} 14... Be7 {[%clk 0:02:50.4]} 15. Bg2
{[%clk 0:02:21.6]} 15... Bd7 {[%clk 0:02:50.8]} 16. Nc3 {[%clk 0:02:19.3]} 16...
O-O {[%clk 0:02:50.5]} 17. O-O-O {[%clk 0:02:19.6]} 17... Rab8 {[%clk
0:02:50.6]} 18. b4 {[%clk 0:02:11.8]} 18... Be6 {[%clk 0:02:38.9]} 19. Bxc6
{[%clk 0:02:07.4]} 19... Bxc4 {[%clk 0:02:26.5]} 20. Bd5 {[%clk 0:02:01.5]}
20... Rfc8 {[%clk 0:02:23.1]} 21. Kb1 {[%clk 0:01:49.4]} 21... a5 {[%clk
0:02:21.6]} 22. Bxc4 {[%clk 0:01:49]} 22... Rxc4 {[%clk 0:02:21.2]} 23. Nd5
{[%clk 0:01:49.4]} 23... Rd4 {[%clk 0:01:58.4]} 24. Bc3 {[%clk 0:01:39]} 24...
Rc4 {[%clk 0:01:50]} 25. f5 {[%clk 0:01:35.8]} 25... axb4 {[%clk 0:01:25.9]} 26.
Bxb4 {[%clk 0:01:29.7]} 26... Bf8 {[%clk 0:01:02.4]} 27. fxg6 {[%clk 0:01:29.3]}
27... hxg6 {[%clk 0:01:03.3]} 28. Rc1 {[%clk 0:01:27.9]} 28... Rd4 {[%clk
0:01:02.7]} 29. Rhd1 {[%clk 0:01:27.7]} 29... Re4 {[%clk 0:01:03]} 30. Kb2
{[%clk 0:01:24.7]} 30... g5 {[%clk 0:01:02.8]} 31. Kb3 {[%clk 0:01:23.6]} 31...
Re2 {[%clk 0:00:58.7]} 32. Rc2 {[%clk 0:01:23.2]} 32... Re4 {[%clk 0:00:58.9]}
33. Re1 {[%clk 0:01:22.7]} 33... Rxe1 {[%clk 0:00:58.1]} 34. a4 {[%clk
0:01:17.8]} 34... Re5 {[%clk 0:00:57.5]} 35. Rd2 {[%clk 0:01:14.2]} 35... f5
{[%clk 0:00:55.9]} 36. a5 {[%clk 0:01:13.4]} 36... Ra8 {[%clk 0:00:44.6]} 37.
Ka4 {[%clk 0:01:10.5]} 37... Be7 {[%clk 0:00:37.4]} 38. Bc3 {[%clk 0:01:07.6]}
38... Re4+ {[%clk 0:00:31.8]} 39. Kb5 {[%clk 0:01:07.8]} 39... Bd8 {[%clk
0:00:32.2]} 40. Nb6 {[%clk 0:01:05.5]} 40... Rb8 {[%clk 0:00:25.8]} 41. Rxd6
{[%clk 0:01:04.2]} 41... f4 {[%clk 0:00:26]} 42. gxf4 {[%clk 0:00:57.5]} 42...
gxf4 {[%clk 0:00:26.9]} 43. Rg6 {[%clk 0:00:56.7]} 43... Re7 {[%clk 0:00:23.9]}
44. Bb4 {[%clk 0:00:48.8]} 44... Rf7 {[%clk 0:00:23.3]} 45. Bd6 {[%clk
0:00:47.5]} 45... f3 {[%clk 0:00:19.5]} 46. Rg1 {[%clk 0:00:43.8]} 46... f2
{[%clk 0:00:19.4]} 47. Rf1 {[%clk 0:00:43.9]} 47... Rbb7 {[%clk 0:00:19.3]} 48.
Bg3 {[%clk 0:00:42.1]} 48... Bxb6 {[%clk 0:00:16.6]} 49. axb6 {[%clk 0:00:41.1]}
49... Rf6 {[%clk 0:00:17.2]} 50. Rxf2 {[%clk 0:00:39.1]} 50... Rbxb6+ {[%clk
0:00:16.9]} 51. Kc5 {[%clk 0:00:39]} 51... Rbc6+ {[%clk 0:00:17.3]} 52. Kd5
{[%clk 0:00:39]} 52... Rfe6 {[%clk 0:00:15.9]} 53. Ra2 {[%clk 0:00:37.8]} 53...
Rb6 {[%clk 0:00:14.7]} 54. Ra7 {[%clk 0:00:37.3]} 54... Rg6 {[%clk 0:00:13.8]}
55. Ra8+ {[%clk 0:00:35.8]} 55... Kh7 {[%clk 0:00:14.2]} 56. Ra2 {[%clk
0:00:31.7]} 56... Rb5+ {[%clk 0:00:14.3]} 57. Kc4 {[%clk 0:00:31.6]} 57... Rf5
{[%clk 0:00:14.8]} 58. Rd2 {[%clk 0:00:29.3]} 58... Rf3 {[%clk 0:00:14.9]} 59.
Rd4 {[%clk 0:00:28.7]} 59... Rg5 {[%clk 0:00:14.5]} 60. Rh4+ {[%clk 0:00:28.4]}
60... Kg6 {[%clk 0:00:14.8]} 61. Rd4 {[%clk 0:00:28.3]} 61... Rgf5 {[%clk
0:00:12.2]} 62. Rg4+ {[%clk 0:00:27]} 62... Kf7 {[%clk 0:00:12.1]} 63. Kd4
{[%clk 0:00:26.4]} 63... Rf1 {[%clk 0:00:11.8]} 64. Ke4 {[%clk 0:00:26.2]} 64...
Rf6 {[%clk 0:00:12.2]} 65. Rg5 {[%clk 0:00:25.5]} 65... Re6+ {[%clk 0:00:12.4]}
66. Kd3 {[%clk 0:00:20.3]} 66... Rd1+ {[%clk 0:00:11.9]} 67. Kc2 {[%clk
0:00:20.4]} 67... Rd7 {[%clk 0:00:12.2]} 68. Rf5+ {[%clk 0:00:20]} 68... Kg6
{[%clk 0:00:11.7]} 69. Rc5 {[%clk 0:00:19.9]} 69... Kh6 {[%clk 0:00:10.3]} 70.
Bf4+ {[%clk 0:00:19.2]} 70... Kg6 {[%clk 0:00:09.7]} 71. Bg3 {[%clk 0:00:20.1]}
71... Re4 {[%clk 0:00:09.7]} 72. Rc6+ {[%clk 0:00:19.7]} 72... Kf5 {[%clk
0:00:09.7]} 73. Rc5+ {[%clk 0:00:19.8]} 73... Kg4 {[%clk 0:00:10]} 74. Be5
{[%clk 0:00:17.5]} 74... g5 {[%clk 0:00:09.9]} 75. Bb8 {[%clk 0:00:15.3]} 75...
Kh4 {[%clk 0:00:09]} 76. Bg3+ {[%clk 0:00:14.1]} 76... Kg4 {[%clk 0:00:09.3]}
77. Rc8 {[%clk 0:00:13.6]} 77... Kf3 {[%clk 0:00:08.9]} 78. Rf8+ {[%clk
0:00:12.5]} 78... Kg2 {[%clk 0:00:09.2]} 79. Rf2+ {[%clk 0:00:12.1]} 79... Kh3
{[%clk 0:00:09.1]} 80. Rf8 {[%clk 0:00:12.4]} 80... Rc4+ {[%clk 0:00:07.9]} 81.
Kb3 {[%clk 0:00:12.3]} 81... Rc6 {[%clk 0:00:08.6]} 82. Rh8+ {[%clk 0:00:11.4]}
82... Kg2 {[%clk 0:00:08.6]} 83. Kb4 {[%clk 0:00:11.4]} 83... Rb7+ {[%clk
0:00:08]} 84. Ka5 {[%clk 0:00:10.9]} 84... Rb1 {[%clk 0:00:08.2]} 85. Rb8 {[%clk
0:00:07.8]} 85... Rxb8 {[%clk 0:00:05.8]} 86. Bxb8 {[%clk 0:00:08.7]} 86... Rc2
{[%clk 0:00:05.7]} 87. Be5 {[%clk 0:00:06.7]} 87... g4 {[%clk 0:00:06.1]} 88.
Kb4 {[%clk 0:00:06]} 88... Kh3 {[%clk 0:00:06.7]} 89. Kb3 {[%clk 0:00:04.9]}
89... Rxh2 {[%clk 0:00:07.3]} 90. Bxh2 {[%clk 0:00:04.6]} 90... Kxh2 {[%clk
0:00:08.2]} 0-1

[Event "*** Titled Tuesday Blitz"]
[Site "Chess.com"]
[Date "2020.04.28"]
[Round "4"]
[White "Igor_Lysyj"]
[Black "x-3738459472"]
[Result "1-0"]
[WhiteElo "2793"]
[BlackElo "2516"]
[TimeControl "180+1"]
[EndTime "10:42:51 PDT"]
[Termination "Igor_Lysyj won by resignation"]

1. d4 {[%clk 0:03:00]} 1... Nf6 {[%clk 0:02:59.1]} 2. c4 {[%clk 0:02:59.8]} 2...
e6 {[%clk 0:02:59.6]} 3. Nf3 {[%clk 0:02:59.4]} 3... Bb4+ {[%clk 0:03:00]} 4.
Bd2 {[%clk 0:02:58.7]} 4... a5 {[%clk 0:02:58]} 5. g3 {[%clk 0:02:58]} 5... d6
{[%clk 0:02:58.1]} 6. Bg2 {[%clk 0:02:57.1]} 6... Nbd7 {[%clk 0:02:58.8]} 7. O-O
{[%clk 0:02:56.8]} 7... e5 {[%clk 0:02:59.4]} 8. Bg5 {[%clk 0:02:52.2]} 8...
exd4 {[%clk 0:02:59.3]} 9. Nxd4 {[%clk 0:02:50.7]} 9... h6 {[%clk 0:02:59.7]}
10. Bf4 {[%clk 0:02:43.1]} 10... O-O {[%clk 0:02:58.1]} 11. Nc2 {[%clk
0:02:39.7]} 11... Bc5 {[%clk 0:02:50.9]} 12. Nc3 {[%clk 0:02:39.1]} 12... Ne5
{[%clk 0:02:50]} 13. b3 {[%clk 0:02:33.8]} 13... Re8 {[%clk 0:02:48.2]} 14. h3
{[%clk 0:02:25]} 14... Ng6 {[%clk 0:02:30.5]} 15. Bd2 {[%clk 0:02:22.3]} 15...
Bf5 {[%clk 0:02:30]} 16. Ne3 {[%clk 0:02:18.4]} 16... Bxe3 {[%clk 0:02:26.7]}
17. Bxe3 {[%clk 0:02:18.1]} 17... Qc8 {[%clk 0:02:27]} 18. Kh2 {[%clk
0:02:13.7]} 18... Ne4 {[%clk 0:02:26.3]} 19. Nd5 {[%clk 0:02:10.3]} 19... Ne7
{[%clk 0:02:20.8]} 20. Rc1 {[%clk 0:02:04.5]} 20... Nxd5 {[%clk 0:02:17.8]} 21.
cxd5 {[%clk 0:02:04.4]} 21... Qd7 {[%clk 0:02:17.3]} 22. Bd4 {[%clk 0:02:01.7]}
22... b6 {[%clk 0:02:13.2]} 23. e3 {[%clk 0:01:55.6]} 23... Re7 {[%clk
0:02:09.5]} 24. f4 {[%clk 0:01:49.1]} 24... Rae8 {[%clk 0:02:08.8]} 25. g4
{[%clk 0:01:48.7]} 25... Bh7 {[%clk 0:02:08.9]} 26. f5 {[%clk 0:01:47]} 26...
Nf6 {[%clk 0:02:05.2]} 27. Qc2 {[%clk 0:01:41.3]} 27... Ne4 {[%clk 0:01:46.4]}
28. Bxe4 {[%clk 0:01:27.7]} 28... Rxe4 {[%clk 0:01:46.1]} 29. Qxc7 {[%clk
0:01:27.6]} 29... Qb5 {[%clk 0:01:44.9]} 30. Qc4 {[%clk 0:01:26]} 30... Qd7
{[%clk 0:01:43.9]} 31. Qc3 {[%clk 0:01:20.1]} 31... f6 {[%clk 0:01:43]} 32. Rf2
{[%clk 0:00:48.4]} 32... Kh8 {[%clk 0:01:42.3]} 33. Qc6 {[%clk 0:00:42.3]} 33...
Qf7 {[%clk 0:01:42.1]} 34. Qc7 {[%clk 0:00:39.7]} 34... Qxd5 {[%clk 0:01:40.9]}
35. Qc6 {[%clk 0:00:35.3]} 35... Qf7 {[%clk 0:01:35.1]} 36. Qxd6 {[%clk
0:00:34.2]} 36... Bg8 {[%clk 0:01:34.8]} 37. Rc7 {[%clk 0:00:31.9]} 37... R4e7
{[%clk 0:01:34.9]} 38. Rfc2 {[%clk 0:00:30]} 38... h5 {[%clk 0:01:34.4]} 39. g5
{[%clk 0:00:28.1]} 39... Bh7 {[%clk 0:01:10.3]} 40. g6 {[%clk 0:00:26.7]} 40...
Bxg6 {[%clk 0:01:10.2]} 41. fxg6 {[%clk 0:00:26.5]} 41... Qxg6 {[%clk
0:01:11.1]} 42. Rg2 {[%clk 0:00:25]} 42... Qf7 {[%clk 0:01:10.9]} 43. Rxe7
{[%clk 0:00:24.2]} 43... Rxe7 {[%clk 0:01:11.8]} 44. Qb8+ {[%clk 0:00:23.7]}
44... Re8 {[%clk 0:01:12.2]} 45. Qf4 {[%clk 0:00:23.1]} 45... b5 {[%clk
0:01:12.1]} 46. Qf5 {[%clk 0:00:23]} 46... Qc7+ {[%clk 0:01:08.5]} 47. Qf4
{[%clk 0:00:21.2]} 47... Qxf4+ {[%clk 0:01:04.9]} 48. exf4 {[%clk 0:00:20.8]}
48... Re4 {[%clk 0:01:05.8]} 49. Bb6 {[%clk 0:00:19.8]} 49... a4 {[%clk
0:01:06.3]} 50. bxa4 {[%clk 0:00:19.8]} 50... bxa4 {[%clk 0:01:04.3]} 51. f5
{[%clk 0:00:20]} 51... Rf4 {[%clk 0:01:03.6]} 52. Rf2 {[%clk 0:00:20]} 52... Rb4
{[%clk 0:01:03.2]} 53. Bc7 {[%clk 0:00:19.3]} 53... a3 {[%clk 0:01:02.3]} 54.
Bd6 {[%clk 0:00:19.2]} 54... Ra4 {[%clk 0:01:02.6]} 55. Kg3 {[%clk 0:00:17.9]}
55... Kh7 {[%clk 0:01:02.4]} 56. h4 {[%clk 0:00:17.8]} 56... g6 {[%clk
0:01:02.8]} 57. fxg6+ {[%clk 0:00:17.8]} 57... Kxg6 {[%clk 0:01:03.7]} 58. Rf3
{[%clk 0:00:18.1]} 58... Rg4+ {[%clk 0:01:03.5]} 59. Kh3 {[%clk 0:00:18.2]}
59... Rd4 {[%clk 0:01:02.2]} 60. Bxa3 {[%clk 0:00:16]} 60... Ra4 {[%clk
0:01:02.5]} 61. Kg3 {[%clk 0:00:13.8]} 61... f5 {[%clk 0:01:01.3]} 62. Kh3
{[%clk 0:00:13.8]} 62... f4 {[%clk 0:01:01.6]} 63. Bd6 {[%clk 0:00:13.5]} 63...
Rxa2 {[%clk 0:00:59]} 64. Bxf4 {[%clk 0:00:12.8]} 64... Ra1 {[%clk 0:00:59.3]}
65. Bg5 {[%clk 0:00:13]} 65... Ra4 {[%clk 0:00:57.7]} 66. Rf6+ {[%clk
0:00:12.5]} 66... Kg7 {[%clk 0:00:58.5]} 67. Kg3 {[%clk 0:00:12.4]} 67... Rb4
{[%clk 0:00:57.3]} 68. Kf3 {[%clk 0:00:12.5]} 68... Ra4 {[%clk 0:00:57.3]} 69.
Re6 {[%clk 0:00:12.5]} 69... Rb4 {[%clk 0:00:55.5]} 70. Re4 {[%clk 0:00:12.6]}
70... Rb1 {[%clk 0:00:54.6]} 71. Kf4 {[%clk 0:00:12.9]} 71... Rf1+ {[%clk
0:00:54.6]} 72. Ke5 {[%clk 0:00:12.9]} 72... Kg6 {[%clk 0:00:55.3]} 73. Ke6
{[%clk 0:00:12.9]} 73... Ra1 {[%clk 0:00:55.4]} 74. Rd4 {[%clk 0:00:12.8]} 74...
Ra6+ {[%clk 0:00:55.3]} 75. Rd6 {[%clk 0:00:12.6]} 75... Ra1 {[%clk 0:00:55.2]}
76. Ke5+ {[%clk 0:00:12.3]} 76... Kf7 {[%clk 0:00:55.2]} 77. Kf5 {[%clk
0:00:11.8]} 77... Ra5+ {[%clk 0:00:54.6]} 78. Ke4 {[%clk 0:00:10.9]} 78... Ra4+
{[%clk 0:00:55]} 79. Rd4 {[%clk 0:00:10.8]} 79... Ra5 {[%clk 0:00:55.6]} 80.
Rd7+ {[%clk 0:00:10.2]} 80... Ke6 {[%clk 0:00:54.3]} 81. Rh7 {[%clk 0:00:09.7]}
81... Ra4+ {[%clk 0:00:54.5]} 82. Kd3 {[%clk 0:00:09.9]} 82... Kf5 {[%clk
0:00:54.9]} 83. Rxh5 {[%clk 0:00:09.3]} 83... Kg6 {[%clk 0:00:55.8]} 84. Rh6+
{[%clk 0:00:09.5]} 84... Kg7 {[%clk 0:00:56.7]} 85. Rc6 {[%clk 0:00:08.9]} 85...
Rg4 {[%clk 0:00:55.9]} 86. Rc4 {[%clk 0:00:08.6]} 86... Rg1 {[%clk 0:00:55.6]}
87. Ke3 {[%clk 0:00:08.6]} 87... Kg6 {[%clk 0:00:56]} 88. Kf3 {[%clk 0:00:08.6]}
88... Ra1 {[%clk 0:00:55.3]} 89. Rc6+ {[%clk 0:00:08.2]} 89... Kg7 {[%clk
0:00:55.1]} 90. Kg4 {[%clk 0:00:07.6]} 90... Ra8 {[%clk 0:00:53.1]} 91. Rc7+
{[%clk 0:00:06.6]} 91... Kh8 {[%clk 0:00:52.3]} 92. Kh5 {[%clk 0:00:06.6]} 92...
Ra6 {[%clk 0:00:52]} 93. Kg4 {[%clk 0:00:05.6]} 93... Kg8 {[%clk 0:00:50.8]} 94.
Kh5 {[%clk 0:00:06]} 94... Kh8 {[%clk 0:00:50.7]} 95. Re7 {[%clk 0:00:06.6]}
95... Kg8 {[%clk 0:00:50.8]} 96. Re4 {[%clk 0:00:07.1]} 96... Kh7 {[%clk
0:00:50.4]} 97. Kg4 {[%clk 0:00:07.6]} 97... Ra1 {[%clk 0:00:48.9]} 98. Re7+
{[%clk 0:00:07.6]} 98... Kg8 {[%clk 0:00:48.6]} 99. h5 {[%clk 0:00:08]} 99...
Ra6 {[%clk 0:00:46.1]} 100. Kf5 {[%clk 0:00:07.7]} 100... Ra5+ {[%clk
0:00:46.1]} 101. Kg6 {[%clk 0:00:07.7]} 101... Ra6+ {[%clk 0:00:46.3]} 102. Bf6
{[%clk 0:00:07.6]} 102... Ra8 {[%clk 0:00:43.4]} 103. Rd7 {[%clk 0:00:07.4]}
103... Rf8 {[%clk 0:00:43.3]} 104. Rd8 {[%clk 0:00:06.6]} 104... Rxd8 {[%clk
0:00:42.1]} 105. Bxd8 {[%clk 0:00:06.6]} 1-0